[Event "Titled Tuesday Blitz August 09 Early 2022"]
[White "Hajiyev, Kanan"]
[Black "Broca Jimenez, Fernando"]
[WhiteFideId "13404148"]
[BlackFideId "5104742"]
[WhiteElo "2118"]
[BlackElo "2062"]
[Result "1-0"]
[Round "03"]
[TimeControl "180+1"]
[Date "2022.08.09"]
[WhiteClock "0:01:46"]
[BlackClock "0:00:04"]

1. d4 {[%clk 0:03:00]}  Nf6 {[%clk 0:02:58]} 2. Nf3 {[%clk 0:03:00]}  g6 {[%clk 0:02:56]} 3. c4 {[%clk 0:03:01]}  Bg7 {[%clk 0:02:57]} 4. g3 {[%clk 0:03:02]}  d6 {[%clk 0:02:57]} 5. Bg2 {[%clk 0:03:03]}  O-O {[%clk 0:02:57]} 6. O-O {[%clk 0:03:04]}  Nbd7 {[%clk 0:02:57]} 7. Nc3 {[%clk 0:03:05]}  e5 {[%clk 0:02:56]} 8. b3 {[%clk 0:03:06]}  c6 {[%clk 0:02:51]} 9. Bb2 {[%clk 0:03:06]}  Qc7 {[%clk 0:02:49]} 10. e4 {[%clk 0:03:06]}  Re8 {[%clk 0:02:48]} 11. Qd2 {[%clk 0:03:06]}  Nf8 {[%clk 0:02:31]} 12. h3 {[%clk 0:03:05]}  h6 {[%clk 0:02:27]} 13. Rad1 {[%clk 0:03:05]}  g5 {[%clk 0:02:24]} 14. Rfe1 {[%clk 0:03:04]}  Ng6 {[%clk 0:02:23]} 15. c5 {[%clk 0:03:01]}  dxc5 {[%clk 0:02:16]} 16. dxe5 {[%clk 0:02:56]}  Nxe5 {[%clk 0:02:10]} 17. Nxe5 {[%clk 0:02:56]}  Rxe5 {[%clk 0:02:01]} 18. Na4 {[%clk 0:02:56]}  Re8 {[%clk 0:01:54]} 19. Nxc5 {[%clk 0:02:48]}  Be6 {[%clk 0:01:53]} 20. Qb4 {[%clk 0:02:41]}  b6 {[%clk 0:01:30]} 21. Nxe6 {[%clk 0:02:41]}  Rxe6 {[%clk 0:01:29]} 22. Rc1 {[%clk 0:02:36]}  Rd8 {[%clk 0:01:03]} 23. Qc3 {[%clk 0:02:16]}  c5 {[%clk 0:00:35]} 24. b4 {[%clk 0:02:15]}  Ne8 {[%clk 0:00:29]} 25. Qc2 {[%clk 0:02:15]}  Bxb2 {[%clk 0:00:29]} 26. Qxb2 {[%clk 0:02:15]}  Qe5 {[%clk 0:00:26]} 27. Qc2 {[%clk 0:02:11]}  cxb4 {[%clk 0:00:25]} 28. Qa4 {[%clk 0:02:11]}  a5 {[%clk 0:00:23]} 29. Kh2 {[%clk 0:02:05]}  Rd2 {[%clk 0:00:22]} 30. Rc2 {[%clk 0:02:06]}  Red6 {[%clk 0:00:20]} 31. f4 {[%clk 0:02:02]}  Qd4 {[%clk 0:00:18]} 32. Qxe8+ {[%clk 0:02:02]}  Kg7 {[%clk 0:00:18]} 33. Re2 {[%clk 0:02:00]}  Rxc2 {[%clk 0:00:11]} 34. Rxc2 {[%clk 0:01:58]}  Qd3 {[%clk 0:00:12]} 35. Qe5+ {[%clk 0:01:56]}  Kh7 {[%clk 0:00:09]} 36. fxg5 {[%clk 0:01:51]}  hxg5 {[%clk 0:00:09]} 37. Rf2 {[%clk 0:01:46]}  f6 {[%clk 0:00:07]} 38. Rxf6 {[%clk 0:01:45]}  Rxf6 {[%clk 0:00:04]} 39. Qxf6 {[%clk 0:01:46]} 1-0


[Site "https://www.chess.com"]

[Event "Titled Tuesday Blitz August 09 Early 2022"]
[White "Harsh Suresh"]
[Black "Devaev, Alexander"]
[WhiteFideId "45018464"]
[BlackFideId "4169395"]
[WhiteElo "2070"]
[BlackElo "2185"]
[Result "1/2-1/2"]
[Round "03"]
[TimeControl "180+1"]
[Date "2022.08.09"]
[WhiteClock "0:00:07"]
[BlackClock "0:00:16"]

1. e4 {[%clk 0:03:00]}  c6 {[%clk 0:02:57]} 2. d3 {[%clk 0:02:56]}  d5 {[%clk 0:02:51]} 3. Nd2 {[%clk 0:02:56]}  Nf6 {[%clk 0:02:46]} 4. Ngf3 {[%clk 0:02:56]}  Bg4 {[%clk 0:02:46]} 5. Be2 {[%clk 0:02:51]}  e6 {[%clk 0:02:42]} 6. O-O {[%clk 0:02:50]}  Nbd7 {[%clk 0:02:40]} 7. h3 {[%clk 0:02:50]}  Bh5 {[%clk 0:02:34]} 8. e5 {[%clk 0:02:50]}  Ng8 {[%clk 0:02:32]} 9. d4 {[%clk 0:02:49]}  Bxf3 {[%clk 0:02:20]} 10. Nxf3 {[%clk 0:02:46]}  Ne7 {[%clk 0:02:18]} 11. g3 {[%clk 0:02:44]}  Rc8 {[%clk 0:02:15]} 12. c3 {[%clk 0:02:35]}  c5 {[%clk 0:02:14]} 13. Be3 {[%clk 0:02:32]}  Nc6 {[%clk 0:02:13]} 14. a3 {[%clk 0:02:26]}  Be7 {[%clk 0:02:08]} 15. b4 {[%clk 0:02:24]}  cxd4 {[%clk 0:02:08]} 16. cxd4 {[%clk 0:02:24]}  Nb6 {[%clk 0:02:08]} 17. Nd2 {[%clk 0:02:22]}  O-O {[%clk 0:01:35]} 18. Rc1 {[%clk 0:02:18]}  Nb8 {[%clk 0:01:25]} 19. Nb3 {[%clk 0:02:13]}  Nc4 {[%clk 0:01:19]} 20. Bxc4 {[%clk 0:02:07]}  dxc4 {[%clk 0:01:20]} 21. Nd2 {[%clk 0:02:05]}  b5 {[%clk 0:01:20]} 22. Ne4 {[%clk 0:02:03]}  Nd7 {[%clk 0:01:17]} 23. h4 {[%clk 0:01:15]}  Nb6 {[%clk 0:01:15]} 24. Bg5 {[%clk 0:01:14]}  Nd5 {[%clk 0:01:04]} 25. Qf3 {[%clk 0:01:05]}  a6 {[%clk 0:00:55]} 26. Kg2 {[%clk 0:01:03]}  Qd7 {[%clk 0:00:52]} 27. Rfd1 {[%clk 0:00:52]}  Rc7 {[%clk 0:00:49]} 28. Bxe7 {[%clk 0:00:42]}  Qxe7 {[%clk 0:00:48]} 29. Nc5 {[%clk 0:00:43]}  Ra8 {[%clk 0:00:43]} 30. h5 {[%clk 0:00:39]}  h6 {[%clk 0:00:43]} 31. Ra1 {[%clk 0:00:28]}  a5 {[%clk 0:00:43]} 32. Qe4 {[%clk 0:00:21]}  Rca7 {[%clk 0:00:41]} 33. Qe1 {[%clk 0:00:19]}  Qe8 {[%clk 0:00:37]} 34. g4 {[%clk 0:00:17]}  Qc6 {[%clk 0:00:38]} 35. Kg3 {[%clk 0:00:16]}  axb4 {[%clk 0:00:25]} 36. axb4 {[%clk 0:00:17]}  Rxa1 {[%clk 0:00:26]} 37. Rxa1 {[%clk 0:00:18]}  Rxa1 {[%clk 0:00:26]} 38. Qxa1 {[%clk 0:00:19]}  Nxb4 {[%clk 0:00:27]} 39. Qa7 {[%clk 0:00:16]}  Nd3 {[%clk 0:00:23]} 40. Nd7 {[%clk 0:00:15]}  Qc8 {[%clk 0:00:18]} 41. Nb6 {[%clk 0:00:13]}  Qd8 {[%clk 0:00:16]} 42. Nd7 {[%clk 0:00:07]}  c3 {[%clk 0:00:16]} 43. Nc5 {[%clk 0:00:06]}  Nxc5 {[%clk 0:00:16]} 44. Qxc5 {[%clk 0:00:06]}  Qa5 {[%clk 0:00:15]} 45. Qc8+ {[%clk 0:00:05]}  Kh7 {[%clk 0:00:15]} 46. d5 {[%clk 0:00:06]}  exd5 {[%clk 0:00:15]} 47. Qf5+ {[%clk 0:00:06]}  Kg8 {[%clk 0:00:16]} 48. Qc8+ {[%clk 0:00:06]}  Kh7 {[%clk 0:00:16]} 49. Qf5+ {[%clk 0:00:07]}  Kg8 {[%clk 0:00:17]} 50. Qc8+ {[%clk 0:00:07]}  Kh7 {[%clk 0:00:16]} 1/2-1/2


[Site "https://www.chess.com"]

[Event "Titled Tuesday Blitz August 09 Early 2022"]
[White "Hua, Lefong"]
[Black "Hoffmann, Asa"]
[WhiteFideId "2602253"]
[BlackFideId "2001470"]
[WhiteElo "2598"]
[BlackElo "2117"]
[Result "1-0"]
[Round "03"]
[TimeControl "180+1"]
[Date "2022.08.09"]
[WhiteClock "0:00:13"]
[BlackClock "0:00:23"]

1. d4 {[%clk 0:03:00]}  Nf6 {[%clk 0:02:58]} 2. c4 {[%clk 0:03:01]}  c5 {[%clk 0:02:54]} 3. d5 {[%clk 0:03:00]}  e5 {[%clk 0:02:54]} 4. Nc3 {[%clk 0:03:00]}  d6 {[%clk 0:02:54]} 5. e4 {[%clk 0:02:59]}  Be7 {[%clk 0:02:53]} 6. g3 {[%clk 0:02:59]}  O-O {[%clk 0:02:53]} 7. Bg2 {[%clk 0:02:59]}  Na6 {[%clk 0:02:53]} 8. Nge2 {[%clk 0:02:59]}  Ne8 {[%clk 0:02:52]} 9. O-O {[%clk 0:02:59]}  Bd7 {[%clk 0:02:52]} 10. a4 {[%clk 0:02:57]}  Nb4 {[%clk 0:02:50]} 11. f4 {[%clk 0:02:57]}  Bf6 {[%clk 0:02:49]} 12. h3 {[%clk 0:02:44]}  b6 {[%clk 0:02:47]} 13. Kh2 {[%clk 0:02:43]}  a6 {[%clk 0:02:47]} 14. Ra3 {[%clk 0:02:41]}  Nc7 {[%clk 0:02:47]} 15. g4 {[%clk 0:02:35]}  exf4 {[%clk 0:02:46]} 16. Bxf4 {[%clk 0:02:35]}  Qe7 {[%clk 0:02:46]} 17. Ng3 {[%clk 0:02:30]}  b5 {[%clk 0:02:37]} 18. Re1 {[%clk 0:02:20]}  Be5 {[%clk 0:02:37]} 19. Qd2 {[%clk 0:02:13]}  bxc4 {[%clk 0:02:31]} 20. Bf1 {[%clk 0:02:05]}  Nd3 {[%clk 0:02:27]} 21. Bxd3 {[%clk 0:02:01]}  cxd3 {[%clk 0:02:27]} 22. Bxe5 {[%clk 0:02:00]}  Qxe5 {[%clk 0:02:27]} 23. Qxd3 {[%clk 0:02:00]}  Rab8 {[%clk 0:02:26]} 24. Re2 {[%clk 0:01:52]}  Rb4 {[%clk 0:02:25]} 25. Kg2 {[%clk 0:01:44]}  g6 {[%clk 0:02:21]} 26. Ra1 {[%clk 0:01:42]}  Rfb8 {[%clk 0:02:20]} 27. Ra2 {[%clk 0:01:38]}  Ne8 {[%clk 0:02:15]} 28. Qxa6 {[%clk 0:01:27]}  Nf6 {[%clk 0:02:06]} 29. Qd3 {[%clk 0:01:25]}  h5 {[%clk 0:02:05]} 30. gxh5 {[%clk 0:01:20]}  gxh5 {[%clk 0:01:58]} 31. Qf3 {[%clk 0:01:16]}  Kh8 {[%clk 0:01:52]} 32. Nf5 {[%clk 0:01:09]}  Rg8+ {[%clk 0:01:50]} 33. Kh1 {[%clk 0:01:09]}  Bxf5 {[%clk 0:01:46]} 34. Qxf5 {[%clk 0:01:01]}  Qg3 {[%clk 0:01:43]} 35. Qxf6+ {[%clk 0:01:00]}  Rg7 {[%clk 0:01:37]} 36. Qf1 {[%clk 0:00:44]}  Rb8 {[%clk 0:01:08]} 37. Nd1 {[%clk 0:00:31]}  Rbg8 {[%clk 0:01:05]} 38. Ne3 {[%clk 0:00:27]}  Qe5 {[%clk 0:00:52]} 39. Nf5 {[%clk 0:00:24]}  Rg5 {[%clk 0:00:44]} 40. b3 {[%clk 0:00:22]}  Qc3 {[%clk 0:00:41]} 41. Re3 {[%clk 0:00:15]}  Qe5 {[%clk 0:00:35]} 42. a5 {[%clk 0:00:15]}  h4 {[%clk 0:00:23]} 43. a6 {[%clk 0:00:15]}  Rg3 {[%clk 0:00:23]} 44. Nxg3 {[%clk 0:00:14]}  hxg3 {[%clk 0:00:23]} 45. Kg2 {[%clk 0:00:13]} 1-0


[Site "https://www.chess.com"]

[Event "Titled Tuesday Blitz August 09 Early 2022"]
[White "Jain, Naveen"]
[Black "Shpanko, Nadiia"]
[WhiteFideId "5003970"]
[BlackFideId "14132400"]
[WhiteElo "2036"]
[BlackElo "2139"]
[Result "1-0"]
[Round "03"]
[TimeControl "180+1"]
[Date "2022.08.09"]
[WhiteClock "0:00:35"]
[BlackClock "0:00:18"]

1. c4 {[%clk 0:03:00]}  c5 {[%clk 0:02:53]} 2. g3 {[%clk 0:03:00]}  Nc6 {[%clk 0:02:52]} 3. Bg2 {[%clk 0:03:00]}  Nf6 {[%clk 0:02:52]} 4. Nc3 {[%clk 0:03:00]}  g6 {[%clk 0:02:48]} 5. Nf3 {[%clk 0:03:00]}  Bg7 {[%clk 0:02:47]} 6. O-O {[%clk 0:03:00]}  O-O {[%clk 0:02:47]} 7. a3 {[%clk 0:03:01]}  d5 {[%clk 0:02:46]} 8. cxd5 {[%clk 0:03:01]}  Nxd5 {[%clk 0:02:47]} 9. Nxd5 {[%clk 0:03:02]}  Qxd5 {[%clk 0:02:46]} 10. d3 {[%clk 0:03:03]}  Qd7 {[%clk 0:02:40]} 11. Rb1 {[%clk 0:03:00]}  a5 {[%clk 0:02:32]} 12. Be3 {[%clk 0:02:55]}  b6 {[%clk 0:02:32]} 13. d4 {[%clk 0:02:56]}  cxd4 {[%clk 0:02:05]} 14. Nxd4 {[%clk 0:02:32]}  Bxd4 {[%clk 0:02:03]} 15. Bxd4 {[%clk 0:02:21]}  Nxd4 {[%clk 0:02:00]} 16. Bxa8 {[%clk 0:02:18]}  Ba6 {[%clk 0:02:00]} 17. Bf3 {[%clk 0:02:01]}  Rd8 {[%clk 0:01:42]} 18. Kg2 {[%clk 0:01:55]}  Qe8 {[%clk 0:01:31]} 19. Qc1 {[%clk 0:01:32]}  Nxe2 {[%clk 0:01:12]} 20. Bxe2 {[%clk 0:01:27]}  Bxe2 {[%clk 0:01:13]} 21. Re1 {[%clk 0:01:27]}  Bd3 {[%clk 0:01:13]} 22. Ra1 {[%clk 0:01:26]}  e5 {[%clk 0:01:06]} 23. Qe3 {[%clk 0:01:22]}  Qc6+ {[%clk 0:01:02]} 24. Kg1 {[%clk 0:01:22]}  e4 {[%clk 0:00:55]} 25. Rac1 {[%clk 0:01:22]}  Qb5 {[%clk 0:00:55]} 26. Qd2 {[%clk 0:01:14]}  h5 {[%clk 0:00:43]} 27. Rxe4 {[%clk 0:01:11]}  Kh7 {[%clk 0:00:30]} 28. Re3 {[%clk 0:01:06]}  Rd7 {[%clk 0:00:27]} 29. Qc3 {[%clk 0:00:52]}  Bf5 {[%clk 0:00:25]} 30. Qf6 {[%clk 0:00:46]}  Qd5 {[%clk 0:00:25]} 31. Re8 {[%clk 0:00:36]}  Qd4 {[%clk 0:00:18]} 32. Rh8# {[%clk 0:00:35]} 1-0


[Site "https://www.chess.com"]

[Event "Titled Tuesday Blitz August 09 Early 2022"]
[White "Jaskolka, Tomasz"]
[Black "Mardov, Dimitar"]
[WhiteFideId "1170791"]
[BlackFideId "30919495"]
[WhiteElo "2073"]
[BlackElo "2185"]
[Result "0-1"]
[Round "03"]
[TimeControl "180+1"]
[Date "2022.08.09"]
[WhiteClock "0:00:16"]
[BlackClock "0:00:17"]

1. d4 {[%clk 0:03:00]}  Nf6 {[%clk 0:02:54]} 2. c4 {[%clk 0:03:00]}  e6 {[%clk 0:02:54]} 3. g3 {[%clk 0:03:00]}  d5 {[%clk 0:02:54]} 4. Bg2 {[%clk 0:03:00]}  dxc4 {[%clk 0:02:49]} 5. Nf3 {[%clk 0:02:59]}  Nc6 {[%clk 0:02:48]} 6. Qa4 {[%clk 0:02:54]}  Bb4+ {[%clk 0:02:47]} 7. Bd2 {[%clk 0:02:53]}  Nd5 {[%clk 0:02:47]} 8. Bxb4 {[%clk 0:02:39]}  Nxb4 {[%clk 0:02:48]} 9. a3 {[%clk 0:02:39]}  b5 {[%clk 0:02:29]} 10. Qxb5 {[%clk 0:02:39]}  Nc2+ {[%clk 0:02:27]} 11. Kd2 {[%clk 0:02:39]}  Nxa1 {[%clk 0:02:14]} 12. Qxc6+ {[%clk 0:02:39]}  Bd7 {[%clk 0:02:14]} 13. Qxc4 {[%clk 0:02:39]}  Rb8 {[%clk 0:02:12]} 14. b4 {[%clk 0:02:37]}  Ba4 {[%clk 0:02:08]} 15. Nc3 {[%clk 0:02:04]}  Nb3+ {[%clk 0:02:08]} 16. Ke1 {[%clk 0:02:03]}  Na5 {[%clk 0:01:50]} 17. bxa5 {[%clk 0:01:52]}  Bd7 {[%clk 0:01:50]} 18. Ne5 {[%clk 0:01:28]}  O-O {[%clk 0:01:45]} 19. f4 {[%clk 0:01:29]}  Qe7 {[%clk 0:01:38]} 20. Kf2 {[%clk 0:01:24]}  Be8 {[%clk 0:01:33]} 21. Qc5 {[%clk 0:01:07]}  Qxc5 {[%clk 0:01:32]} 22. dxc5 {[%clk 0:01:08]}  Rb3 {[%clk 0:01:32]} 23. Rc1 {[%clk 0:01:04]}  Rxa3 {[%clk 0:01:32]} 24. c6 {[%clk 0:01:04]}  Rxa5 {[%clk 0:01:31]} 25. Ne4 {[%clk 0:00:58]}  f6 {[%clk 0:01:12]} 26. Nd7 {[%clk 0:00:57]}  Rf7 {[%clk 0:01:08]} 27. Nec5 {[%clk 0:00:53]}  Re7 {[%clk 0:00:33]} 28. Rb1 {[%clk 0:00:52]}  Kf7 {[%clk 0:00:30]} 29. Rb7 {[%clk 0:00:51]}  a6 {[%clk 0:00:25]} 30. f5 {[%clk 0:00:31]}  exf5 {[%clk 0:00:18]} 31. Bd5+ {[%clk 0:00:31]}  Kg6 {[%clk 0:00:18]} 32. Bf3 {[%clk 0:00:21]}  Kh6 {[%clk 0:00:08]} 33. h4 {[%clk 0:00:20]}  Rb5 {[%clk 0:00:08]} 34. Ra7 {[%clk 0:00:19]}  a5 {[%clk 0:00:08]} 35. Rb7 {[%clk 0:00:11]}  Rb4 {[%clk 0:00:04]} 36. Ra7 {[%clk 0:00:09]}  Rb5 {[%clk 0:00:04]} 37. Rb7 {[%clk 0:00:10]}  Rb4 {[%clk 0:00:05]} 38. Nd3 {[%clk 0:00:08]}  Rc4 {[%clk 0:00:04]} 39. Rxc7 {[%clk 0:00:07]}  a4 {[%clk 0:00:04]} 40. Ra7 {[%clk 0:00:07]}  a3 {[%clk 0:00:03]} 41. N7c5 {[%clk 0:00:07]}  Rxa7 {[%clk 0:00:03]} 42. Ne6 {[%clk 0:00:05]}  Bxc6 {[%clk 0:00:03]} 43. Bxc6 {[%clk 0:00:05]}  Rxc6 {[%clk 0:00:04]} 44. Nef4 {[%clk 0:00:04]}  g5 {[%clk 0:00:05]} 45. Nd5 {[%clk 0:00:04]}  Rd6 {[%clk 0:00:05]} 46. Ne3 {[%clk 0:00:04]}  Rxd3 {[%clk 0:00:05]} 47. exd3 {[%clk 0:00:04]}  Kg6 {[%clk 0:00:05]} 48. Nc2 {[%clk 0:00:04]}  a2 {[%clk 0:00:06]} 49. Na1 {[%clk 0:00:05]}  Rb7 {[%clk 0:00:06]} 50. Ke3 {[%clk 0:00:05]}  Rb1 {[%clk 0:00:07]} 51. Nc2 {[%clk 0:00:06]}  a1=Q {[%clk 0:00:08]} 52. Nxa1 {[%clk 0:00:07]}  Rxa1 {[%clk 0:00:09]} 53. hxg5 {[%clk 0:00:07]}  fxg5 {[%clk 0:00:09]} 54. Kf3 {[%clk 0:00:08]}  h5 {[%clk 0:00:09]} 55. Ke3 {[%clk 0:00:09]}  Rd1 {[%clk 0:00:10]} 56. Ke2 {[%clk 0:00:09]}  Ra1 {[%clk 0:00:11]} 57. Ke3 {[%clk 0:00:10]}  Ra8 {[%clk 0:00:11]} 58. d4 {[%clk 0:00:10]}  Rh8 {[%clk 0:00:12]} 59. Kf3 {[%clk 0:00:11]}  h4 {[%clk 0:00:13]} 60. g4 {[%clk 0:00:12]}  fxg4+ {[%clk 0:00:13]} 61. Kxg4 {[%clk 0:00:12]}  h3 {[%clk 0:00:14]} 62. d5 {[%clk 0:00:13]}  h2 {[%clk 0:00:15]} 63. d6 {[%clk 0:00:13]}  h1=Q {[%clk 0:00:16]} 64. d7 {[%clk 0:00:14]}  Qe4+ {[%clk 0:00:16]} 65. Kg3 {[%clk 0:00:14]}  Qf4+ {[%clk 0:00:16]} 66. Kg2 {[%clk 0:00:15]}  Rh2+ {[%clk 0:00:16]} 67. Kg1 {[%clk 0:00:16]}  Qf2# {[%clk 0:00:17]} 0-1


[Site "https://www.chess.com"]

[Event "Titled Tuesday Blitz August 09 Early 2022"]
[White "Jeet, Jain"]
[Black "Rose, Felix"]
[WhiteFideId "5073022"]
[BlackFideId "5105722"]
[WhiteElo "2055"]
[BlackElo "2039"]
[Result "1-0"]
[Round "03"]
[TimeControl "180+1"]
[Date "2022.08.09"]
[WhiteClock "0:01:09"]
[BlackClock "0:00:08"]

1. b3 {[%clk 0:03:00]}  e5 {[%clk 0:02:58]} 2. Bb2 {[%clk 0:03:00]}  Nc6 {[%clk 0:02:59]} 3. g3 {[%clk 0:02:59]}  Nf6 {[%clk 0:02:59]} 4. Bg2 {[%clk 0:02:59]}  d5 {[%clk 0:02:59]} 5. d3 {[%clk 0:03:00]}  Bd6 {[%clk 0:02:58]} 6. Nd2 {[%clk 0:03:00]}  O-O {[%clk 0:02:58]} 7. Ngf3 {[%clk 0:03:00]}  Re8 {[%clk 0:02:58]} 8. e4 {[%clk 0:03:00]}  dxe4 {[%clk 0:02:55]} 9. dxe4 {[%clk 0:03:00]}  Be6 {[%clk 0:02:54]} 10. O-O {[%clk 0:03:00]}  Qe7 {[%clk 0:02:54]} 11. a3 {[%clk 0:02:59]}  a5 {[%clk 0:02:53]} 12. Qe2 {[%clk 0:02:59]}  Rad8 {[%clk 0:02:53]} 13. Rfe1 {[%clk 0:02:56]}  h6 {[%clk 0:02:50]} 14. Nc4 {[%clk 0:02:55]}  Nd7 {[%clk 0:02:47]} 15. Rad1 {[%clk 0:02:52]}  f6 {[%clk 0:02:37]} 16. Nxd6 {[%clk 0:02:51]}  cxd6 {[%clk 0:02:37]} 17. c4 {[%clk 0:02:52]}  Nc5 {[%clk 0:02:33]} 18. Qe3 {[%clk 0:02:48]}  a4 {[%clk 0:02:19]} 19. b4 {[%clk 0:02:44]}  Nb3 {[%clk 0:02:14]} 20. Bf1 {[%clk 0:02:42]}  Qf7 {[%clk 0:02:07]} 21. Qc3 {[%clk 0:02:33]}  Re7 {[%clk 0:01:51]} 22. c5 {[%clk 0:02:11]}  dxc5 {[%clk 0:01:38]} 23. Rxd8+ {[%clk 0:02:12]}  Nxd8 {[%clk 0:01:38]} 24. bxc5 {[%clk 0:02:12]}  Rc7 {[%clk 0:01:32]} 25. Rd1 {[%clk 0:02:04]}  Nc6 {[%clk 0:01:14]} 26. Bb5 {[%clk 0:01:59]}  Ncd4 {[%clk 0:00:56]} 27. Nxd4 {[%clk 0:01:46]}  Nxd4 {[%clk 0:00:55]} 28. Bf1 {[%clk 0:01:41]}  Qe7 {[%clk 0:00:51]} 29. Qb4 {[%clk 0:01:37]}  Qxc5 {[%clk 0:00:41]} 30. Qxa4 {[%clk 0:01:34]}  Nf3+ {[%clk 0:00:24]} 31. Kg2 {[%clk 0:01:34]}  Ng5 {[%clk 0:00:16]} 32. h4 {[%clk 0:01:25]}  Bh3+ {[%clk 0:00:12]} 33. Kh1 {[%clk 0:01:18]}  Qxf2 {[%clk 0:00:08]} 34. hxg5 {[%clk 0:01:10]}  Bxf1 {[%clk 0:00:08]} 35. Qe8+ {[%clk 0:01:09]} 1-0


[Site "https://www.chess.com"]

[Event "Titled Tuesday Blitz August 09 Early 2022"]
[White "Kamsky, Gata"]
[Black "Rostomyan, Mikayel"]
[WhiteFideId "2000024"]
[BlackFideId "13313754"]
[WhiteElo "2666"]
[BlackElo "1426"]
[Result "1-0"]
[Round "03"]
[TimeControl "180+1"]
[Date "2022.08.09"]
[WhiteClock "0:00:18"]
[BlackClock "0:00:03"]

1. d4 {[%clk 0:03:00]}  Nf6 {[%clk 0:02:59]} 2. Nf3 {[%clk 0:02:59]}  c5 {[%clk 0:02:59]} 3. d5 {[%clk 0:02:58]}  b5 {[%clk 0:02:59]} 4. c4 {[%clk 0:02:57]}  b4 {[%clk 0:02:49]} 5. a3 {[%clk 0:02:53]}  a5 {[%clk 0:02:41]} 6. Nbd2 {[%clk 0:02:43]}  Bb7 {[%clk 0:02:37]} 7. e4 {[%clk 0:02:42]}  d6 {[%clk 0:02:36]} 8. a4 {[%clk 0:02:41]}  Nbd7 {[%clk 0:02:35]} 9. h3 {[%clk 0:02:39]}  g6 {[%clk 0:02:35]} 10. Bd3 {[%clk 0:02:39]}  Bg7 {[%clk 0:02:35]} 11. O-O {[%clk 0:02:39]}  Qc7 {[%clk 0:02:34]} 12. Rb1 {[%clk 0:02:38]}  Nh5 {[%clk 0:02:31]} 13. g3 {[%clk 0:02:32]}  O-O {[%clk 0:02:24]} 14. b3 {[%clk 0:02:31]}  Rae8 {[%clk 0:02:23]} 15. Re1 {[%clk 0:02:29]}  Bc8 {[%clk 0:02:15]} 16. Nf1 {[%clk 0:02:15]}  Ne5 {[%clk 0:02:06]} 17. g4 {[%clk 0:02:14]}  Nxd3 {[%clk 0:01:56]} 18. Qxd3 {[%clk 0:02:13]}  Nf6 {[%clk 0:01:56]} 19. Ng3 {[%clk 0:02:12]}  Nd7 {[%clk 0:01:51]} 20. Bf4 {[%clk 0:02:09]}  h6 {[%clk 0:01:41]} 21. Qd2 {[%clk 0:01:56]}  Kh7 {[%clk 0:01:36]} 22. Kg2 {[%clk 0:01:53]}  e5 {[%clk 0:01:15]} 23. Be3 {[%clk 0:01:44]}  Nb6 {[%clk 0:01:08]} 24. Qc2 {[%clk 0:01:41]}  f6 {[%clk 0:00:57]} 25. Nd2 {[%clk 0:01:26]}  Rf7 {[%clk 0:00:52]} 26. f3 {[%clk 0:01:26]}  Ref8 {[%clk 0:00:52]} 27. f4 {[%clk 0:00:48]}  f5 {[%clk 0:00:43]} 28. exf5 {[%clk 0:00:46]}  gxf5 {[%clk 0:00:43]} 29. Nf3 {[%clk 0:00:44]}  Kg8 {[%clk 0:00:29]} 30. fxe5 {[%clk 0:00:40]}  fxg4 {[%clk 0:00:22]} 31. e6 {[%clk 0:00:25]}  Rxf3 {[%clk 0:00:20]} 32. hxg4 {[%clk 0:00:25]}  Be5 {[%clk 0:00:14]} 33. Qg6+ {[%clk 0:00:24]}  Qg7 {[%clk 0:00:13]} 34. Qxg7+ {[%clk 0:00:24]}  Kxg7 {[%clk 0:00:14]} 35. Nf5+ {[%clk 0:00:24]}  R3xf5 {[%clk 0:00:14]} 36. gxf5 {[%clk 0:00:24]}  Rxf5 {[%clk 0:00:14]} 37. Rf1 {[%clk 0:00:25]}  Kf6 {[%clk 0:00:07]} 38. Bxh6 {[%clk 0:00:21]}  Na8 {[%clk 0:00:05]} 39. Rxf5+ {[%clk 0:00:20]}  Kxf5 {[%clk 0:00:06]} 40. Rf1+ {[%clk 0:00:20]}  Kg6 {[%clk 0:00:06]} 41. Rf8 {[%clk 0:00:20]}  Kxh6 {[%clk 0:00:04]} 42. Rxc8 {[%clk 0:00:19]}  Nb6 {[%clk 0:00:05]} 43. Rb8 {[%clk 0:00:20]}  Nxc4 {[%clk 0:00:04]} 44. bxc4 {[%clk 0:00:19]}  Bf6 {[%clk 0:00:03]} 45. Kf3 {[%clk 0:00:19]}  Kg6 {[%clk 0:00:02]} 46. Ke4 {[%clk 0:00:19]}  Kg5 {[%clk 0:00:02]} 47. Rb6 {[%clk 0:00:19]}  Kg6 {[%clk 0:00:02]} 48. Rb5 {[%clk 0:00:18]}  Kg7 {[%clk 0:00:02]} 49. Rxa5 {[%clk 0:00:18]}  b3 {[%clk 0:00:02]} 50. Rb5 {[%clk 0:00:18]}  b2 {[%clk 0:00:03]} 51. a5 {[%clk 0:00:19]}  Kg6 {[%clk 0:00:02]} 52. a6 {[%clk 0:00:19]}  b1=Q+ {[%clk 0:00:03]} 53. Rxb1 {[%clk 0:00:18]} 1-0


[Site "https://www.chess.com"]

[Event "Titled Tuesday Blitz August 09 Early 2022"]
[White "Kaufman, Raymond"]
[Black "Bosnjak, Petar"]
[WhiteFideId "2015056"]
[BlackFideId "14532581"]
[WhiteElo "2321"]
[BlackElo "2135"]
[Result "0-1"]
[Round "03"]
[TimeControl "180+1"]
[Date "2022.08.09"]
[WhiteClock "0:00:22"]
[BlackClock "0:00:58"]

1. e4 {[%clk 0:03:00]}  c6 {[%clk 0:03:00]} 2. Nc3 {[%clk 0:02:55]}  d5 {[%clk 0:03:01]} 3. Nf3 {[%clk 0:02:55]}  dxe4 {[%clk 0:03:01]} 4. Nxe4 {[%clk 0:02:55]}  Nf6 {[%clk 0:03:01]} 5. Qe2 {[%clk 0:02:56]}  Nxe4 {[%clk 0:02:59]} 6. Qxe4 {[%clk 0:02:57]}  Nd7 {[%clk 0:02:59]} 7. Bc4 {[%clk 0:02:56]}  Nf6 {[%clk 0:02:58]} 8. Ne5 {[%clk 0:02:56]}  Nd5 {[%clk 0:02:20]} 9. O-O {[%clk 0:02:36]}  g6 {[%clk 0:02:15]} 10. d4 {[%clk 0:02:32]}  Bg7 {[%clk 0:02:13]} 11. c3 {[%clk 0:02:14]}  O-O {[%clk 0:02:05]} 12. Qh4 {[%clk 0:02:09]}  Bf5 {[%clk 0:01:53]} 13. Bh6 {[%clk 0:02:04]}  e6 {[%clk 0:01:44]} 14. Qxd8 {[%clk 0:01:42]}  Rfxd8 {[%clk 0:01:45]} 15. Bxg7 {[%clk 0:01:43]}  Kxg7 {[%clk 0:01:40]} 16. g4 {[%clk 0:01:34]}  f6 {[%clk 0:01:40]} 17. gxf5 {[%clk 0:01:32]}  fxe5 {[%clk 0:01:38]} 18. fxe6 {[%clk 0:01:31]}  exd4 {[%clk 0:01:37]} 19. cxd4 {[%clk 0:01:31]}  Nb6 {[%clk 0:01:37]} 20. Bb3 {[%clk 0:01:27]}  Rxd4 {[%clk 0:01:36]} 21. Rad1 {[%clk 0:01:09]}  Rxd1 {[%clk 0:01:34]} 22. Rxd1 {[%clk 0:01:09]}  Re8 {[%clk 0:01:35]} 23. a4 {[%clk 0:01:00]}  a5 {[%clk 0:01:27]} 24. Kg2 {[%clk 0:00:52]}  Kf6 {[%clk 0:01:27]} 25. Re1 {[%clk 0:00:49]}  Ke7 {[%clk 0:01:26]} 26. Kg3 {[%clk 0:00:48]}  Rd8 {[%clk 0:01:24]} 27. Re5 {[%clk 0:00:47]}  Rd2 {[%clk 0:01:20]} 28. Rxa5 {[%clk 0:00:45]}  Rxb2 {[%clk 0:01:19]} 29. Bd1 {[%clk 0:00:43]}  Kxe6 {[%clk 0:01:16]} 30. h4 {[%clk 0:00:41]}  Nd5 {[%clk 0:01:13]} 31. Ra8 {[%clk 0:00:37]}  h5 {[%clk 0:01:10]} 32. Re8+ {[%clk 0:00:35]}  Ne7 {[%clk 0:01:08]} 33. Bf3 {[%clk 0:00:29]}  Kd7 {[%clk 0:01:05]} 34. Rb8 {[%clk 0:00:27]}  Nf5+ {[%clk 0:01:01]} 35. Kh3 {[%clk 0:00:23]}  Kc7 {[%clk 0:01:02]} 36. Rg8 {[%clk 0:00:22]}  Rb3 {[%clk 0:00:58]} 0-1


[Site "https://www.chess.com"]